bitfinex-derivatives/quotes_ETHF0:USTF0_20260209
["timestamp","ask_amount","ask_price","bid_price","bid_amount"]
[1770646549140,1.98753061,2015.9,2015.4,6.41852484]
[1770646549334,6.37150964,2016.2,2015.4,6.41852484]
[1770646549539,6.37150964,2016.4,2015.8,6.41852484]
[1770646549933,8.35904025,2016.3,2015.7,6.49318661]
[1770646550134,6.37150964,2016.3,2015.7,12.91171145]
[1770646550642,1.98753061,2016.2,2015.7,6.41852484]
[1770646550836,6.37150964,2016.4,2015.7,6.41852484]
[1770646551141,6.37150964,2016.2,2015.4,6.26775897]
[1770646551738,1.98753061,2016.1,2015.4,6.26775897]
[1770646551936,6.37150964,2016.0,2015.3,0.00599379]
[1770646552641,1.98753061,2015.9,2015.3,6.31860652]
[1770646554439,11.49317574,2015.8,2015.3,6.31860652]
[1770646554941,6.37150964,2016.0,2015.3,6.31860652]
[1770646555143,1.98753061,2015.9,2015.3,6.31860652]
[1770646555339,6.37150964,2015.9,2015.3,6.31860652]
[1770646555540,8.35904025,2015.9,2015.3,6.31860652]
[1770646555840,6.37150964,2015.8,2015.3,0.00599379]
[1770646556146,6.37150964,2015.8,2015.3,6.2526891]
[1770646556346,1.98753061,2015.7,2015.3,6.2526891]
[1770646556646,8.35904025,2015.7,2015.3,0.00599379]
[1770646556949,1.98753061,2015.7,2015.3,6.42451863]
[1770646557443,6.37150964,2016.4,2015.3,6.42451863]
[1770646557645,6.37150964,2016.1,2015.3,6.42451863]
[1770646558146,6.37150964,2015.9,2015.3,6.42451863]
[1770646558744,6.37150964,2015.7,2015.3,0.00599379]
[1770646559637,6.37150964,2015.7,2015.3,6.42451863]
[1770646560250,8.35904025,2015.7,2015.3,6.42451863]
[1770646560640,8.35904025,2015.7,2015.3,0.00599379]
[1770646560845,6.37150964,2015.6,2015.3,0.00599379]
[1770646561048,6.37150964,2015.6,2014.9,20.75752484]
[1770646561243,6.37150964,2015.4,2014.5,21.70219186]
[1770646561451,6.37150964,2015.4,2014.6,6.41852484]
[1770646561749,6.37150964,2015.2,2014.6,6.41852484]
[1770646562255,6.37150964,2015.2,2014.6,6.42367773]
[1770646562553,6.37554742,2015.2,2014.6,6.42367773]
[1770646563650,8.35904025,2015.1,2014.6,6.42367773]
[1770646564248,1.98753061,2015.1,2014.6,6.42367773]
[1770646564752,0.00403778,2015.2,2014.6,6.42367773]
[1770646564753,6.37150964,2015.7,2014.8,6.41852484]
[1770646564946,6.37150964,2015.9,2015.0,5.06401487]
[1770646565146,6.37150964,2015.9,2015.2,5.06401487]
[1770646565547,6.37150964,2016.1,2015.2,5.06401487]
[1770646565846,6.37732034,2016.1,2015.2,5.06401487]
[1770646566554,6.37732034,2016.1,2015.1,14.66733]
[1770646566947,6.37732034,2016.1,2015.1,19.95068321]
[1770646567247,6.37150964,2016.8,2015.6,5.28335321]
[1770646567454,6.37150964,2016.8,2015.8,5.28335321]
[1770646567850,6.37150964,2016.8,2016.0,5.25071673]
[1770646568349,6.37150964,2016.8,2015.7,14.437]
[1770646568350,6.37733031,2016.8,2015.7,14.437]
[1770646568546,11.49317574,2015.9,2015.7,14.437]
[1770646568743,6.37150964,2016.5,2015.8,5.28184562]
[1770646569447,6.37150964,2016.5,2015.8,5.53008562]
[1770646569841,0.00582067,2016.8,2015.8,5.53008562]
[1770646570053,6.37150964,2016.7,2015.9,0.39151366]
[1770646570245,6.37150964,2016.7,2016.1,0.39151366]
[1770646570441,6.37150964,2016.7,2016.2,14.48]
[1770646570643,6.7e-07,2016.8,2016.4,0.24816]
[1770646570848,6.37150964,2018.1,2016.5,0.56630697]
[1770646571047,2.87116605,2018.3,2016.4,0.24816]
[1770646571048,6.37150964,2017.9,2016.4,0.24816]
[1770646571254,6.37150964,2017.9,2016.5,0.56630697]
[1770646571648,6.37150964,2017.9,2016.7,0.55318067]
[1770646571951,6.37729941,2017.9,2016.8,14.487]
[1770646572154,6.37729941,2017.9,2016.2,0.55318067]
[1770646572350,4.32578757,2017.8,2016.3,14.484]
[1770646572548,6.37150964,2017.7,2016.3,14.484]
[1770646572748,6.37150964,2017.7,2016.3,15.02321974]
[1770646572944,6.37150964,2017.7,2016.4,0.53921974]
[1770646575456,6.37150964,2017.7,2016.6,0.58213396]
[1770646575853,6.37150964,2017.7,2016.5,0.24815]
[1770646577458,6.37150964,2017.7,2016.5,0.99189736]
[1770646577658,6.37150964,2017.7,2016.6,0.80233789]
[1770646578750,6.37150964,2017.7,2016.5,0.24815]
[1770646579857,6.37150964,2017.7,2016.3,14.484]
[1770646580062,5.81715704,2017.5,2016.1,0.00492146]
[1770646580256,5.81715704,2017.3,2016.1,0.00492146]
[1770646580755,5.82323526,2017.1,2016.1,0.00492146]
[1770646581062,5.82323526,2016.9,2015.5,12.253]
[1770646581558,5.82077453,2016.7,2015.5,12.253]
[1770646582154,5.82077453,2016.7,2015.5,12.25832325]
[1770646583056,5.82077453,2016.7,2015.6,0.24826]
[1770646583359,5.19146942,2016.1,2015.6,1.47410734]
[1770646583558,0.00392279,2016.1,2015.6,1.47410734]
[1770646583755,5.77872934,2016.1,2015.6,1.47410734]
[1770646584155,0.00392279,2016.1,2015.6,1.47410734]
[1770646584353,5.77676795,2016.8,2015.6,1.47410734]
[1770646585355,5.78045301,2016.8,2015.6,1.47410734]
[1770646586763,5.78045301,2016.8,2016.0,1.54150881]
[1770646587761,5.78045301,2016.8,2016.0,0.24821]
[1770646589052,5.78045301,2016.8,2015.5,0.25359325]
[1770646589962,6.02857301,2016.8,2015.5,0.25359325]
[1770646590362,5.85758086,2016.6,2015.5,0.25359325]
[1770646591365,4.31374237,2016.5,2015.5,0.25359325]
[1770646591564,5.86049729,2016.4,2015.0,0.24833]
[1770646591965,5.86049729,2016.4,2015.0,1.76087972]
[1770646592562,4.31383048,2016.3,2015.0,0.25279579]
[1770646592761,10.1637202,2016.2,2015.0,0.25279579]
[1770646592961,5.84988972,2016.0,2015.0,0.00446579]
[1770646593157,5.84988972,2015.8,2015.0,0.00446579]
[1770646595967,5.84988972,2015.8,2014.5,1.64152071]
[1770646596169,5.84988972,2015.8,2014.7,1.64152071]
[1770646596666,5.84988972,2015.8,2014.6,2.04493748]
[1770646596870,5.84988972,2015.8,2014.6,0.24839]
[1770646597072,5.84988972,2015.8,2014.6,0.0062508]
[1770646597665,5.81223026,2015.0,2013.6,2.09157396]
[1770646598672,5.81588701,2015.0,2013.6,2.09660052]
[1770646599874,6.77125644,2014.6,2013.6,6.36695656]
[1770646600273,6.77125644,2014.8,2014.0,0.24846]
[1770646600674,6.77125644,2014.8,2014.1,0.25286353]
[1770646601767,0.00365675,2015.0,2014.3,0.79689723]
[1770646601966,0.00365675,2015.0,2014.5,0.79689723]
[1770646602579,6.50000387,2015.3,2014.5,0.79689723]
[1770646603577,6.5047306,2015.3,2014.5,0.79689723]
[1770646605974,6.68663176,2015.6,2014.7,1.08529198]
[1770646606278,6.68663176,2015.8,2015.1,1.08529198]
[1770646606868,6.68663176,2015.8,2015.2,0.24831]
[1770646607075,6.69299259,2015.8,2015.2,0.00509594]
[1770646607873,6.69299259,2015.8,2014.7,1.39098539]
[1770646608878,6.69299259,2015.8,2014.7,1.39647965]
[1770646610178,6.69299259,2015.8,2014.7,0.25385426]
[1770646610379,6.69299259,2015.8,2014.7,0.00549426]
[1770646611987,6.68663176,2015.6,2014.7,0.00549426]
[1770646612279,6.68663176,2015.6,2014.3,0.24842]
[1770646613382,6.68663176,2015.6,2014.3,0.25329355]
[1770646614389,6.68663176,2014.3,2013.8,0.24848]
[1770646615586,6.69206376,2014.3,2013.8,1.97153591]
[1770646615987,5.70164369,2015.6,2014.5,2.23916133]
[1770646615988,6.68663176,2015.6,2014.5,2.23916133]
[1770646616286,6.68663176,2015.6,2015.0,0.24833]
[1770646616994,3.05e-06,2015.6,2015.0,2.59530346]
[1770646617189,6.68663176,2016.0,2015.4,3.10487346]
[1770646617493,6.68663176,2016.0,2015.4,0.24828]
[1770646618189,6.69089714,2016.0,2015.4,0.25368651]
[1770646618390,6.69089714,2016.0,2015.4,0.00540651]
[1770646619186,6.68663176,2015.9,2014.9,0.24835]
[1770646619989,6.68663176,2015.9,2014.5,14.568]
[1770646620193,6.68663176,2015.6,2014.5,14.57368833]
[1770646621292,6.68663176,2015.6,2014.6,6.39012547]
[1770646623099,6.68663176,2015.6,2014.5,14.57368833]
[1770646623602,40.8,2015.5,2014.5,0.00568833]
[1770646623803,6.68663176,2015.4,2014.5,0.00568833]
[1770646626699,6.68663176,2015.2,2013.9,14.82547]
[1770646627009,6.68663176,2015.2,2014.0,6.4722654]
[1770646627702,6.68663176,2015.2,2013.9,14.82547]
[1770646627703,6.68663176,2015.0,2013.4,9.53166579]
[1770646627902,6.68663176,2014.8,2013.4,3.62279165]
[1770646628104,6.68663176,2014.8,2013.6,6.31506841]
[1770646628506,6.68663176,2014.1,2013.6,6.31506841]
[1770646628708,6.69294588,2014.1,2013.6,6.3202325]
[1770646629407,6.69294588,2014.1,2013.6,0.00516409]
[1770646629806,6.69294588,2014.1,2013.4,0.24852]
[1770646630111,6.69294588,2014.1,2012.9,3.6228227]
[1770646630313,6.69294588,2014.1,2013.0,3.3742327]
[1770646630609,6.69294588,2014.1,2013.0,9.79076648]
[1770646630808,6.69294588,2014.1,2013.0,9.7971793]
[1770646631601,6.69294588,2014.1,2013.0,6.4229466]
[1770646631808,6.69294588,2014.1,2013.1,3.42420094]
[1770646632002,6.69294588,2014.1,2013.0,6.4229466]
[1770646632212,6.69294588,2014.1,2013.0,3.43061376]
[1770646632413,6.69294588,2014.1,2013.1,6.36245523]
[1770646632706,6.69294588,2014.1,2013.0,3.43061376]
[1770646632707,6.69294588,2014.1,2013.0,0.00641282]
[1770646635017,6.68663176,2013.7,2012.6,0.30237617]
[1770646635313,6.68663176,2013.7,2012.4,3.95061869]
[1770646635710,6.68663176,2013.7,2012.5,6.48137144]
[1770646636109,6.68663176,2013.7,2012.5,6.48601961]
[1770646636314,6.68663176,2013.7,2012.9,3.46772637]
[1770646636716,7.1516436,2013.9,2013.1,3.69021404]
[1770646637117,7.1516436,2013.9,2013.2,6.49993855]
[1770646637312,7.1516436,2013.9,2012.7,3.44165404]
[1770646637521,7.1516436,2013.9,2012.6,0.24863]
[1770646637714,7.1516436,2013.9,2012.8,6.57407295]
[1770646637914,7.1516436,2013.9,2012.7,6.57407295]
[1770646638121,7.1516436,2013.9,2012.6,0.24863]
[1770646639016,6.97475064,2013.7,2012.6,0.24863]
[1770646641116,9.93161543,2013.5,2012.5,0.00464817]
[1770646641310,6.97475064,2013.4,2012.5,0.00464817]
[1770646641713,6.97475064,2013.4,2012.0,0.2487]
[1770646641913,9.93161543,2013.2,2012.0,0.2487]
[1770646642114,6.97475064,2012.8,2011.6,0.3031624]
[1770646642514,6.97475064,2012.8,2011.5,0.24876]
[1770646642723,6.97475064,2012.8,2011.7,6.37296284]
[1770646643022,6.97475064,2012.8,2011.6,6.37296284]
[1770646643221,6.97475064,2012.8,2011.5,0.25515159]
[1770646643523,6.97475064,2012.8,2011.6,6.37296284]
[1770646643722,1.4068914,2011.7,2011.5,0.25515159]
[1770646643911,2.77901655,2012.0,2011.5,0.25515159]
[1770646644717,2.77901655,2012.0,2011.5,0.00639159]
[1770646644914,6.97475064,2012.7,2011.8,7.59373424]
[1770646645321,6.97475064,2012.7,2011.9,6.60234582]
[1770646645721,6.97475064,2012.7,2011.8,0.24873]
[1770646645912,6.97475064,2012.7,2011.8,7.59373424]
[1770646646116,6.97990216,2012.7,2012.0,7.34500424]
[1770646647614,6.97990216,2012.7,2011.5,7.35139583]
[1770646647823,6.97990216,2012.7,2011.6,7.34500424]
[1770646648026,6.97990216,2012.7,2011.8,7.34500424]
[1770646648821,6.97990216,2012.7,2011.7,0.24874]
[1770646648822,6.97990216,2012.7,2012.0,7.34500424]
[1770646650215,0.00515152,2012.7,2012.0,7.34500424]
[1770646650416,11.12872196,2013.0,2012.5,0.24865]
[1770646650622,11.12872196,2013.0,2012.5,15.00165]
[1770646650824,10.01249196,2013.0,2012.7,0.24862]
[1770646651022,8.74904845,2013.0,2012.7,0.24862]
[1770646651326,6.7814035,2013.0,2012.8,6.44813544]
[1770646651526,5.1297435,2013.0,2012.9,0.2486]
[1770646651724,8.30832456,2014.2,2013.3,6.11438]
[1770646651918,8.30832456,2014.2,2013.5,0.24852]
[1770646652728,8.31203059,2014.2,2013.5,0.25238611]
[1770646654525,8.31203059,2014.2,2012.9,0.24859]
[1770646655028,8.31203059,2014.2,2012.7,14.824]
[1770646655227,7.22323064,2013.9,2012.4,0.24865]
[1770646655617,6.97475064,2013.7,2012.4,0.25471187]
[1770646657027,0.24851,2013.6,2012.4,0.00606187]
[1770646657228,6.97475064,2013.3,2011.9,7.34500424]
[1770646657433,6.97475064,2013.3,2012.2,7.59368424]
[1770646657928,6.97475064,2013.2,2012.2,7.59368424]
[1770646658226,6.97475064,2013.2,2012.2,0.00622158]
[1770646658530,1.72594835,2012.3,2012.2,0.00622158]
[1770646658724,1.73191663,2012.3,2012.2,0.00622158]
[1770646659028,1.73191663,2012.3,2011.9,7.34500424]
[1770646659221,1.73191663,2012.3,2011.5,7.34500424]
[1770646659222,6.97475064,2012.2,2011.5,7.34500424]
[1770646659727,0.00596828,2012.3,2011.6,7.59375424]
[1770646659924,0.00596828,2012.3,2011.6,7.5980125]
[1770646660124,0.00596828,2012.3,2011.7,13.67020951]
[1770646660323,0.00596828,2012.3,2011.8,7.34500424]
[1770646660726,0.00596828,2012.3,2011.9,13.87870054]
[1770646661025,6.97475064,2013.1,2012.3,7.34500424]
[1770646661426,6.97475064,2013.1,2012.4,6.5336963]
[1770646661829,6.97475064,2013.3,2012.5,7.59365424]
[1770646662024,6.98066658,2013.3,2012.5,7.59365424]
[1770646662232,6.98066658,2013.3,2012.6,6.6038229]
[1770646662734,6.98066658,2013.3,2012.0,22.48570424]
[1770646663131,6.98066658,2013.3,2012.1,6.34961596]
[1770646663435,6.98066658,2013.3,2012.0,15.1407]
[1770646663626,6.98066658,2013.3,2012.0,0.2487]
[1770646663828,6.98066658,2013.3,2012.0,15.1917]
[1770646664323,6.98066658,2013.3,2012.3,7.34500424]
[1770646664830,6.98066658,2013.3,2012.4,6.74066301]
[1770646665039,6.98066658,2013.3,2012.4,7.59366424]
[1770646665333,6.98066658,2013.3,2012.6,8.27376592]
[1770646667337,6.98066658,2013.3,2012.6,23.25676592]
[1770646667726,6.98066658,2013.3,2012.7,6.56202916]
[1770646668326,0.00591594,2013.3,2012.8,8.20153681]
[1770646668730,0.00591594,2013.3,2012.7,6.56202916]
[1770646668731,8.49214002,2013.3,2012.6,0.24863]
[1770646668925,8.49214002,2013.3,2012.7,15.035]
[1770646669130,8.49214002,2013.3,2012.8,14.71093887]
[1770646669328,8.49214002,2013.3,2012.7,21.52583032]
[1770646669329,8.48622408,2014.3,2012.9,8.46870855]
[1770646669530,8.48622408,2014.3,2013.0,8.29233633]
[1770646669735,8.48622408,2014.3,2013.2,8.29233633]
[1770646669936,8.48622408,2014.2,2013.2,8.29233633]
[1770646670433,8.49145265,2014.2,2013.2,8.2973096]
[1770646670636,0.00522857,2014.2,2013.4,8.42333721]
[1770646671133,8.48622408,2014.5,2013.7,8.76829864]
[1770646671339,8.48622408,2014.8,2014.0,9.01675864]
[1770646671632,8.48622408,2014.8,2013.4,0.24853]
[1770646671839,8.48622408,2014.6,2013.4,0.24853]
[1770646672035,8.48622408,2014.6,2013.3,8.88846088]
[1770646672337,8.48622408,2014.4,2013.2,15.07597327]
[1770646672836,8.48622408,2014.2,2013.2,0.00497327]
[1770646673830,8.48622408,2013.2,2012.4,8.88846088]
[1770646674039,8.48622408,2013.2,2012.5,9.13711088]
[1770646674242,8.48622408,2013.2,2012.4,15.09]
[1770646674442,8.48622408,2013.2,2012.1,8.88846088]
[1770646674737,8.48622408,2013.0,2012.0,15.099]
[1770646674943,8.49102152,2013.0,2012.0,15.10483778]
[1770646675240,8.49102152,2013.0,2012.1,6.46473436]
[1770646675534,8.49102152,2013.0,2012.0,15.10483778]
[1770646676337,8.49102152,2013.0,2012.0,0.00583778]
[1770646676540,8.48622408,2012.8,2011.4,8.88846088]
[1770646676840,8.48622408,2012.6,2011.4,8.88846088]
[1770646677037,8.48622408,2012.6,2011.3,0.24878]
[1770646677240,8.48622408,2012.4,2011.3,0.24878]
[1770646677440,8.48622408,2012.4,2011.3,0.25445606]
[1770646677634,8.48622408,2012.4,2011.4,8.88846088]
[1770646677831,8.48622408,2012.4,2011.4,6.59594399]
[1770646678029,5.32211818,2012.3,2010.9,8.88846088]
[1770646678233,5.32211818,2012.3,2010.7,0.24886]
[1770646678234,8.48622408,2012.2,2010.7,9.13732088]
[1770646678433,8.48622408,2012.0,2010.7,6.84480399]
[1770646678641,8.48622408,2012.0,2010.7,15.73326487]
[1770646678842,8.48622408,2011.8,2010.2,0.24893]
[1770646679039,8.48622408,2011.6,2010.4,9.13737088]
[1770646679245,8.48622408,2011.6,2010.4,0.24891]
[1770646679446,8.48622408,2011.4,2010.4,0.24891]
[1770646679644,8.49069967,2011.4,2010.4,0.24891]
[1770646679940,8.49069967,2011.4,2010.2,0.00446222]
[1770646680141,8.48622408,2011.2,2010.2,0.00446222]
[1770646680343,8.48622408,2011.1,2010.3,9.13738088]
[1770646680541,8.49069967,2011.4,2010.6,8.88846088]
[1770646680746,8.49069967,2011.4,2010.7,0.24886]
[1770646680940,8.48622408,2011.3,2010.3,0.24892]
[1770646681141,8.48622408,2011.3,2010.6,8.88846088]
[1770646681356,8.48622408,2011.3,2010.5,6.85815273]
[1770646681543,8.48622408,2011.3,2010.7,9.13733088]
[1770646681848,0.00447559,2011.4,2010.7,9.13733088]
[1770646681849,8.49069967,2011.4,2010.7,9.13733088]
[1770646682346,0.00447559,2011.4,2010.9,8.88846088]
[1770646683549,8.49069967,2011.4,2010.5,8.88846088]
[1770646683747,8.49069967,2011.4,2010.3,8.88846088]
[1770646684048,8.49069967,2011.4,2010.3,15.46692641]
[1770646684446,0.00447559,2011.4,2010.6,8.88846088]
[1770646684646,8.49069967,2011.4,2010.8,8.88846088]
[1770646685045,8.49069967,2011.4,2010.7,15.49487]
[1770646685242,8.49069967,2011.4,2010.8,8.88846088]
[1770646685654,8.49069967,2011.4,2010.2,0.09100108]
[1770646685655,8.49069967,2011.4,2010.3,8.88846088]
[1770646685948,8.49069967,2011.4,2010.4,8.88846088]
[1770646686346,8.49069967,2011.4,2010.3,21.66673522]
[1770646686347,8.49069967,2011.4,2010.6,8.88846088]
[1770646686944,8.49069967,2011.4,2010.4,8.88846088]
[1770646687347,0.00447559,2011.4,2010.6,8.88846088]
[1770646687547,8.49069967,2011.4,2010.6,8.88846088]
[1770646688348,8.49069967,2011.4,2010.5,0.24889]
[1770646689155,8.49069967,2011.4,2010.5,9.13735088]
[1770646691051,8.49069967,2011.4,2010.7,8.88846088]
[1770646692354,8.49069967,2011.4,2010.5,9.13735088]
[1770646694152,8.49069967,2011.4,2010.3,24.17046088]
[1770646694350,8.48622408,2011.2,2010.2,0.00446222]
[1770646695650,8.48622408,2011.2,2010.4,10.41980076]
[1770646695960,8.48622408,2011.2,2010.3,0.24892]
[1770646696155,8.48622408,2011.2,2010.2,0.00446222]
[1770646696658,8.48622408,2011.2,2010.2,10.67319298]
[1770646697348,8.48622408,2011.2,2010.5,10.41980076]
[1770646697953,11.20259672,2011.4,2010.6,10.66868076]
[1770646700056,11.20259672,2011.4,2010.6,0.24888]
[1770646701657,11.20259672,2011.4,2010.6,10.95968357]
[1770646701862,11.20259672,2011.4,2010.3,10.71080357]
[1770646702258,11.20259672,2011.4,2010.3,4.54504351]
[1770646702463,10.81492191,2011.2,2010.2,0.00446222]
[1770646702962,0.25325559,2011.4,2010.2,0.00446222]
[1770646702963,10.81492191,2011.0,2010.2,0.00446222]
[1770646703561,11.06375191,2011.0,2009.6,10.95980357]
[1770646703759,11.06375191,2011.0,2010.0,2.8595201]
[1770646704063,10.81492191,2010.8,2009.6,10.95980357]
[1770646704563,10.81492191,2010.8,2009.6,10.96617211]
[1770646705660,10.81492191,2010.8,2010.0,10.95975357]
[1770646706163,10.81492191,2010.8,2010.0,0.24895]
[1770646706364,10.81492191,2010.6,2010.0,0.24895]
[1770646707554,10.81492191,2010.6,2010.0,10.95975357]
[1770646708662,10.81492191,2011.2,2010.4,10.71080357]
[1770646708958,10.81492191,2011.2,2010.3,0.24891]
[1770646709163,10.81492191,2011.2,2010.3,10.95971357]
[1770646709758,10.8193975,2011.4,2010.3,10.95971357]
[1770646709964,10.8193975,2011.4,2010.6,10.71080357]
[1770646710366,10.8193975,2011.4,2010.5,10.95969357]
[1770646711269,10.8193975,2011.4,2010.5,0.24889]
[1770646711469,10.8193975,2011.4,2011.0,10.71080357]
[1770646711470,0.00447559,2011.4,2011.0,10.71080357]
[1770646711659,10.81492191,2011.7,2011.0,10.71080357]
[1770646711864,10.81492191,2011.9,2011.2,10.71080357]
[1770646712060,20.0,2012.0,2011.4,10.71080357]
[1770646712668,20.00413165,2012.0,2011.6,10.71080357]
[1770646712962,5.7988066,2012.0,2011.6,10.71080357]
[1770646713164,10.81492191,2012.8,2011.6,10.71080357]
[1770646713369,10.81492191,2012.6,2011.4,0.00627558]
[1770646713765,10.81492191,2012.6,2011.4,5.81382175]
[1770646714069,10.82099633,2012.6,2011.6,5.55877617]
[1770646714464,10.82099633,2012.6,2011.8,5.55877617]
[1770646714665,10.82099633,2012.6,2011.9,6.02998503]
[1770646714867,10.82099633,2012.6,2011.9,12.53316662]
[1770646715563,10.81492191,2012.9,2012.0,6.02998503]
[1770646715966,10.81492191,2012.9,2011.8,21.61898503]
[1770646716171,10.81492191,2012.9,2011.9,6.02998503]
[1770646716368,10.81492191,2012.9,2012.0,6.27869503]
[1770646716571,10.8191695,2012.9,2012.0,6.27869503]
[1770646716764,10.8191695,2012.9,2012.1,6.4352709]
[1770646717070,10.8191695,2012.9,2012.1,12.3977139]
[1770646717469,10.8191695,2012.9,2012.1,6.4352709]
[1770646717665,10.8191695,2012.9,2011.4,6.21748858]
[1770646717966,10.8191695,2012.9,2011.5,6.38929591]
[1770646718163,10.8191695,2012.9,2011.6,5.962443]
[1770646718566,10.8191695,2012.9,2011.8,6.06046185]
[1770646719571,10.8191695,2012.9,2011.9,6.30918185]
[1770646719772,10.8191695,2012.9,2011.9,12.76509012]
[1770646719968,10.8191695,2012.9,2012.1,6.30916185]
[1770646720369,0.00424759,2012.9,2012.4,6.30912185]
[1770646720575,10.81492191,2013.2,2012.4,6.30912185]
[1770646720875,10.81492191,2014.0,2013.0,6.27592367]
[1770646721069,10.81492191,2014.0,2012.8,6.02734367]
[1770646721373,10.81492191,2014.0,2013.0,6.02734367]
[1770646721575,10.81949812,2014.0,2013.0,0.00379206]
[1770646721876,10.81949812,2014.0,2012.4,6.02734367]
[1770646722278,10.81949812,2014.0,2012.5,12.41303229]
[1770646722471,10.81949812,2014.0,2012.8,6.03113573]
[1770646722666,10.81949812,2014.0,2013.0,6.04752517]
[1770646722870,10.81949812,2014.0,2013.0,6.05272209]
[1770646723575,10.81949812,2014.0,2013.1,6.04752517]
[1770646723877,0.00457621,2014.0,2013.3,6.04752517]
[1770646724174,10.81492191,2014.9,2013.5,6.04752517]
[1770646724579,10.81492191,2014.9,2013.7,6.04752517]
[1770646724776,10.81492191,2014.9,2013.4,0.24853]
[1770646725178,10.81879785,2014.9,2013.4,0.24853]
[1770646725672,10.81879785,2014.9,2013.4,6.47560127]
[1770646725979,11.06618113,2014.7,2013.0,0.00519692]
[1770646726392,11.06618113,2014.5,2013.0,0.00519692]
[1770646726676,11.06618113,2014.3,2013.0,0.00519692]
[1770646726872,0.24841,2014.4,2013.0,0.00519692]
[1770646726873,11.06618113,2014.1,2013.0,0.00519692]
[1770646727672,11.06618113,2014.1,2013.0,6.15973919]
[1770646728481,11.06618113,2014.7,2013.6,6.15454227]
[1770646729074,11.06618113,2014.7,2013.7,6.40467345]
[1770646729281,11.06618113,2014.7,2013.7,12.84226496]
[1770646729479,11.06618113,2014.7,2013.6,6.43759151]
[1770646729678,11.06618113,2014.7,2013.4,6.15617345]
[1770646729877,11.06618113,2014.7,2013.6,6.40468345]
[1770646730082,11.06618113,2014.7,2013.8,6.15617345]
[1770646731080,11.06618113,2014.7,2013.6,0.24851]
[1770646731684,2.96358411,2014.9,2013.1,18.68870817]
[1770646731685,11.06618113,2014.5,2013.1,15.729]
[1770646731982,11.06618113,2014.5,2013.0,0.25377692]
[1770646731983,11.06618113,2014.2,2013.0,0.00519692]
[1770646732983,11.06618113,2014.2,2013.1,6.36482371]
[1770646733484,11.06618113,2014.2,2013.0,0.00519692]
[1770646733781,11.06618113,2014.0,2013.0,0.00519692]
[1770646735589,11.06618113,2013.8,2013.0,0.00519692]
[1770646735988,11.06618113,2014.6,2013.3,6.27529299]
[1770646736378,51.86618113,2014.6,2013.3,6.27529299]
[1770646736584,11.06618113,2014.5,2013.3,6.27529299]
[1770646738891,11.06618113,2014.5,2013.5,5.71275982]
[1770646739193,11.06618113,2014.5,2013.7,5.46423982]
[1770646739689,11.06618113,2014.7,2014.0,5.71269982]
[1770646739889,11.07005707,2014.9,2014.0,5.71269982]
[1770646740088,11.07005707,2014.9,2014.2,5.46423982]
[1770646741792,11.07005707,2014.9,2013.6,15.665]
[1770646741990,11.07005707,2014.9,2013.8,5.96075234]
[1770646742188,11.07005707,2014.9,2014.1,5.71226234]
[1770646743093,11.06618113,2014.7,2013.5,5.96697315]
[1770646743495,11.07005707,2014.9,2013.8,5.71846315]
[1770646743686,11.07005707,2014.9,2014.0,5.71846315]
[1770646744088,11.07005707,2014.9,2014.1,12.30316933]
[1770646744292,11.07005707,2014.9,2014.2,5.71846315]
[1770646745497,0.00387594,2014.9,2014.3,12.21306265]
[1770646745896,0.00387594,2014.9,2014.3,5.68317415]
[1770646746592,11.06618113,2015.4,2014.4,6.33598849]
[1770646746898,11.06618113,2015.4,2014.5,6.08757849]
[1770646747393,11.06618113,2015.4,2014.6,6.84376648]
[1770646747698,11.07076006,2015.4,2014.6,0.25216212]
[1770646748597,11.06618113,2014.9,2013.6,0.24851]
[1770646748791,14.0258893,2014.4,2013.1,0.24857]
[1770646749093,11.06618113,2014.3,2012.7,6.02434365]
[1770646749295,11.06618113,2014.2,2012.7,6.02434365]
[1770646749495,11.06618113,2014.2,2012.8,6.33271778]
[1770646749893,11.06618113,2014.2,2012.9,6.02434365]
[1770646750195,11.06618113,2014.2,2013.0,6.43740205]
[1770646750593,3.12271634,2014.5,2012.7,0.00578115]
[1770646750594,11.06618113,2014.0,2012.7,0.00578115]
[1770646750801,11.06618113,2013.5,2012.7,0.00578115]
[1770646750994,11.07187689,2013.5,2012.2,11.76843909]
[1770646751195,11.07187689,2013.5,2012.4,11.76843909]
[1770646751603,11.07187689,2013.5,2012.5,18.42781326]
[1770646751798,11.07187689,2013.5,2012.5,6.65937417]
[1770646752000,11.07187689,2013.5,2012.5,12.02283467]
[1770646752198,11.07187689,2013.5,2012.6,6.33572175]
[1770646752603,11.07187689,2013.5,2012.5,0.00574558]
[1770646752797,11.07187689,2013.5,2012.5,11.77418467]
[1770646753592,11.07187689,2013.5,2012.5,0.00574558]
[1770646754094,11.07187689,2013.5,2012.6,18.21715047]
[1770646754603,11.07187689,2013.5,2012.7,11.76843909]
[1770646755003,11.07187689,2013.5,2012.8,6.4717405]
[1770646755399,11.81248734,2013.3,2012.5,0.00574558]
[1770646757404,11.81248734,2013.3,2012.5,11.65592048]
[1770646757710,11.81248734,2013.3,2012.5,0.00574558]
[1770646758205,11.81248734,2013.0,2011.5,11.6501749]
[1770646758605,11.81248734,2013.0,2011.7,6.47775107]
[1770646758910,11.81338028,2012.7,2011.4,15.739]
[1770646759100,11.81338028,2012.7,2011.4,15.74439768]
[1770646759405,11.81338028,2012.5,2011.4,15.74439768]
[1770646759606,11.81338028,2012.5,2011.4,0.00539768]
[1770646760001,11.81338028,2012.5,2011.4,11.256733]
[1770646760605,11.81338028,2012.5,2011.5,17.85776862]
[1770646760801,11.81338028,2012.5,2011.4,0.00539768]
[1770646761198,11.81338028,2012.5,2011.5,6.57205378]
[1770646761400,11.81338028,2012.5,2011.6,11.25133532]
[1770646761600,11.81338028,2012.5,2011.4,0.00539768]
[1770646763108,11.81338028,2012.5,2011.4,11.256733]
[1770646764704,11.81338028,2012.5,2011.4,0.00539768]
[1770646764909,11.81338028,2012.2,2011.4,0.00539768]
[1770646765416,11.81338028,2012.2,2011.0,11.25133532]
[1770646765613,11.81338028,2012.2,2011.2,11.25133532]
[1770646766009,11.81338028,2012.2,2011.4,11.25133532]
[1770646766206,11.81338028,2012.5,2011.5,11.50010532]
[1770646766412,11.81338028,2012.5,2011.6,11.25133532]
[1770646766814,11.81338028,2012.5,2011.7,6.36850813]
[1770646767012,11.81338028,2012.5,2011.7,17.61984345]
[1770646768710,11.81338028,2012.9,2012.0,11.25133532]
[1770646768918,11.81338028,2013.4,2012.2,11.25133532]
[1770646769816,11.81338028,2013.4,2012.4,11.25133532]
[1770646770814,11.81338028,2013.4,2012.5,6.46233079]
[1770646771016,11.81338028,2013.4,2012.6,11.25133532]
[1770646771216,11.81338028,2013.4,2012.3,0.24867]
[1770646771607,11.81338028,2013.4,2012.3,11.50000532]
[1770646772214,11.81338028,2013.4,2012.0,11.25133532]
[1770646772413,11.81338028,2013.2,2011.8,11.50006532]
[1770646772615,11.81338028,2013.2,2011.8,17.87220724]
[1770646773611,11.81338028,2013.0,2012.1,11.25133532]
[1770646773812,0.00569576,2013.5,2012.3,11.25133532]